Workbook

Sheet 4989 Rent Roll current
A1: Rent Roll and P&L
A2: 4989 Ridgewood Ave., Port Orange FL 32127
A3: Tenant Name | B3: Unit | C3: BR | D3: BA | E3: leased | F3: lease origination date | G3: Lease exp date | H3: Security Deposit | I3: Monthly Rent | J3: Annual Base Rent
A4: ############### | B4: 1 | C4: 1 | D4: 1 | E4: Y | H4: 1200 | I4: 1400 | J4: =I4*12 -> 16800
A5: ############### | B5: 2 | C5: 1 | D5: 2 | E5: y | H5: 1500 | I5: 1650 | J5: =I5*12 -> 19800
A6: ############### | B6: 3 | C6: STUDIO | E6: y | H6: 950 | I6: 950 | J6: 11400
A7: ############### | B7: 4 | C7: Studio | E7: Y | H7: 1150 | I7: 1250 | J7: 15000
A8: ############### | B8: 5 | C8: Studio | E8: Y | H8: 900 | I8: 1000 | J8: 12000
A9: ############### | B9: 6 | C9: 1 | D9: 1 | E9: Y | H9: 1250 | I9: 1000 | J9: 12000
A10: El Sabor | B10: Restaurant | E10: Y | H10: 5000 | I10: 3250 | J10: 39000
A11: Total Rent Income | J11: =SUM(J4:J10) -> 126000
A12: Vac & Collections (3%) | J12: =J11*0.03 -> 3780
A13: Effective Rental Income | J13: =J11-J12 -> 122220
A14: Total expenses | J14: =B23 -> 30116
A15: Net Operating Income | J15: =J13-J14 -> 92104
A18: Expenses:
A19: Property Tax | B19: 8832 | F19: 0.06 | G19: =J15/F19 -> 1535066.667
A20: Property Insurance | B20: 3984 | F20: 0.07 | G20: =J15/F20 -> 1315771.429 | I20: 1100000 | J20: =J15/I20 -> 0.08373090909
A21: Repair and Maintenance (5%) | B21: =J11*0.05 -> 6300 | F21: 0.08 | G21: =J15/F21 -> 1151300
A22: Utilities | B22: 11000 | F22: 0.09 | G22: =J15/F22 -> 1023377.778
A23: Total Expenses | B23: =SUM(B19:B22) -> 30116 | F23: =J15/G23 -> 0.08771809524 | G23: 1050000
A25: Year 2 Expenses
A26: Expenses:
A27: Property Tax | B27: 15000 | F27: 0.06 | G27: =$B$32/F27 -> 1430520
A28: Property Insurance | B28: 5500 | F28: 0.07 | G28: =$B$32/F28 -> 1226160
A29: Repair and Maintenance (4%) | B29: =J13*0.04 -> 4888.8 | F29: 0.08 | G29: 1072890
A30: Utilities | B30: 11000 | F30: 0.09 | G30: 953680
A31: Total Expenses | B31: =SUM(B27:B30) -> 36388.8 | F31: =J23/G31 -> 
A32: Year 2 NOI | B32: =J13-B31 -> 85831.2
